bitfinex-derivatives/quotes_SOLF0:USTF0_20250527
["timestamp","ask_amount","ask_price","bid_price","bid_amount"]
[1748350204120,5.00788367,176.78,176.67,4.44906417]
[1748350204327,5.00788367,176.78,176.67,3.972]
[1748350204517,5.00788367,176.75,176.67,2.0132]
[1748350204820,28.52,176.74,176.67,2.0132]
[1748350205012,28.52,176.74,176.65,5.6585]
[1748350205617,28.52,176.74,176.64,28.56]
[1748350205811,5.00788367,176.72,176.63,1.8838]
[1748350206115,5.00788367,176.72,176.64,5.6588]
[1748350206417,5.00788367,176.72,176.63,1.8838]
[1748350206720,5.00788367,176.72,176.65,5.6585]
[1748350207316,5.00788367,176.72,176.66,5.6583]
[1748350207818,5.6574,176.69,176.65,5.6583]
[1748350208017,28.52,176.7,176.63,1.8838]
[1748350208418,28.52,176.7,176.65,5.6586]
[1748350209117,5.6575,176.69,176.65,5.6586]
[1748350212510,34.1772,176.7,176.66,5.6582]
[1748350212711,28.52,176.7,176.66,5.6582]
[1748350213427,5.6575,176.69,176.65,5.6585]
[1748350214018,5.6577,176.68,176.65,5.6585]
[1748350215522,5.6577,176.68,176.64,5.6588]
[1748350217126,5.658,176.67,176.64,5.6588]
[1748350218026,5.6577,176.68,176.64,5.6588]
[1748350218427,5.6577,176.68,176.65,5.6586]
[1748350220032,28.52,176.7,176.64,5.6589]
[1748350221119,5.6579,176.68,176.64,5.6589]
[1748350221819,5.6582,176.67,176.64,5.6589]
[1748350222719,5.6578,176.68,176.64,5.6589]
[1748350223021,8.8664094,176.68,176.64,5.6589]
[1748350223223,5.6581,176.67,176.64,5.6589]
[1748350223627,3.2086094,176.68,176.64,5.6589]
[1748350223921,8.8664094,176.68,176.64,5.6589]
[1748350224720,5.658,176.67,176.64,5.6589]
[1748350227924,3.2086094,176.66,176.62,2.0033]
[1748350228429,5.6591,176.64,176.62,2.0033]
[1748350228623,8.8677094,176.64,176.62,2.0033]
[1748350230028,3.2086094,176.64,176.62,2.0033]
[1748350230230,5.6589,176.65,176.62,2.0033]
[1748350231324,5.6589,176.65,176.62,7.6629]
[1748350231723,5.6589,176.65,176.62,2.0033]
[1748350233426,5.659,176.64,176.62,2.0033]
[1748350234825,3.2086094,176.64,176.6,5.66]
[1748350235131,3.2086094,176.64,176.58,30.4632]
[1748350235331,8.8676094,176.64,176.58,30.4632]
[1748350235528,8.8676094,176.64,176.6,5.66]
[1748350236133,5.6593,176.63,176.6,5.66]
[1748350236733,8.8677094,176.64,176.6,5.66]
[1748350239425,8.8677094,176.64,176.61,5.6598]
[1748350239629,3.2086094,176.64,176.61,5.6598]
[1748350239836,5.6587,176.65,176.61,5.6598]
[1748350240038,8.8673094,176.65,176.61,5.6598]
[1748350240232,5.659,176.64,176.6,5.66]
[1748350240933,5.659,176.64,176.61,5.6599]
[1748350242142,5.6593,176.63,176.6,5.6601]
[1748350242631,5.6591,176.64,176.6,5.6601]
[1748350242828,5.6591,176.64,176.61,5.6599]
[1748350243336,31.7286094,176.66,176.58,33.6718094]
[1748350243534,5.659,176.64,176.6,5.6601]
[1748350244539,8.8676094,176.64,176.6,5.6601]
[1748350244738,8.8676094,176.64,176.61,5.6598]
[1748350246239,3.2086094,176.64,176.61,5.6598]
[1748350247039,5.6587,176.65,176.61,5.6598]
[1748350247239,8.8673094,176.65,176.61,5.6598]
[1748350247440,5.659,176.64,176.61,5.6598]
[1748350248139,5.659,176.64,176.6,5.6601]
[1748350250046,5.659,176.64,176.61,5.6598]
[1748350252047,8.8674094,176.65,176.61,5.6598]
[1748350252248,3.2086094,176.65,176.61,5.6598]
[1748350252445,10.48795673,176.72,176.58,33.6718094]
[1748350252644,28.5,176.71,176.58,34.14614154]
[1748350252947,3.2086094,176.67,176.58,34.14614154]
[1748350253145,31.7086094,176.67,176.58,34.14614154]
[1748350253350,5.6583,176.66,176.63,5.6592]
[1748350253550,5.6583,176.66,176.58,34.14614154]
[1748350254251,31.7086094,176.67,176.58,34.14614154]
[1748350254252,5.6586,176.65,176.58,34.14614154]
[1748350254851,5.6586,176.65,176.62,5.6594]
[1748350255253,5.6586,176.65,176.58,34.14614154]
[1748350256051,5.6589,176.64,176.62,5.6594]
[1748350256252,3.2086094,176.66,176.58,30.93753214]
[1748350256548,5.6596,176.63,176.6,5.66]
[1748350256749,3.2086094,176.65,176.58,30.93753214]
[1748350257146,5.6591,176.64,176.6,5.6599]
[1748350257550,5.6591,176.64,176.58,30.93753214]
[1748350258446,8.8673094,176.65,176.61,5.6597]
[1748350264055,8.8670094,176.66,176.58,30.94083446]
[1748350264555,3.2086094,176.66,176.62,5.6595]
[1748350264749,3.2086094,176.66,176.59,0.47763446]
[1748350265152,5.6588,176.65,176.61,5.6596]
[1748350265753,3.2086094,176.66,176.61,5.6596]
[1748350266559,5.6587,176.65,176.61,5.6596]
[1748350266956,5.6587,176.65,176.62,5.6595]
[1748350267158,8.8670094,176.66,176.59,0.47763446]
[1748350267660,3.2086094,176.66,176.62,5.6594]
[1748350267864,5.6586,176.65,176.62,5.6594]
[1748350268859,8.8670094,176.66,176.63,5.6592]
[1748350269162,8.8670094,176.66,176.59,0.47763446]
[1748350269560,8.8670094,176.66,176.62,5.6594]
[1748350269759,5.6587,176.65,176.62,5.6594]
[1748350270266,10.53802161,176.72,176.61,3.2086094]
[1748350270468,3.2086094,176.69,176.61,3.2086094]
[1748350270665,3.2086094,176.69,176.62,2.48633446]
[1748350270863,3.2086094,176.69,176.65,5.6584]
[1748350271255,3.2086094,176.69,176.66,5.658]
[1748350271672,3.2086094,176.69,176.62,2.48633446]
[1748350271860,3.2086094,176.69,176.66,5.6581]
[1748350272755,3.2086094,176.69,176.67,5.6579]
[1748350272959,8.8660094,176.69,176.63,0.47763446]
[1748350273268,3.2086094,176.69,176.63,0.47763446]
[1748350273469,31.6886094,176.71,176.63,3.2086094]
[1748350273965,31.6886094,176.71,176.68,5.6575]
[1748350274363,37.3456094,176.71,176.68,5.6575]
[1748350274563,34.137,176.71,176.64,2.0338]
[1748350275158,34.137,176.71,176.68,5.6575]
[1748350275571,34.137,176.71,176.64,2.0338]
[1748350275872,28.48,176.71,176.69,5.6571]
[1748350276373,28.48,176.71,176.64,2.0338]
[1748350276672,28.48,176.71,176.65,3.68624386]
[1748350276863,28.48,176.71,176.65,3.2086094]
[1748350277069,5.6564,176.72,176.7,5.657]
[1748350280770,5.6564,176.72,176.69,5.6573]
[1748350281171,520.6686094,176.74,176.67,3.2086094]
[1748350281372,517.46,176.74,176.7,5.6567]
[1748350281570,28.48,176.74,176.7,5.6567]
[1748350281974,5.6561,176.73,176.7,5.6567]
[1748350282279,28.48,176.74,176.71,5.6565]
[1748350282470,34.1359,176.74,176.71,5.6565]
[1748350282667,28.48,176.74,176.7,5.6568]
[1748350282872,28.48,176.74,176.68,2.057]
[1748350283071,5.6569,176.71,176.68,2.057]
[1748350283279,31.6886094,176.74,176.68,2.057]
[1748350284283,5.657,176.71,176.68,2.057]
[1748350284476,5.69392916,176.71,176.68,2.09283397]
[1748350285074,5.69392916,176.71,176.68,7.75043397]
[1748350286280,0.03692916,176.71,176.68,7.75043397]
[1748350288282,0.03692916,176.71,176.69,5.6572]
[1748350288681,0.03692916,176.71,176.68,2.09283397]
[1748350288682,0.03692916,176.71,176.7,5.657]
[1748350299880,5.69362916,176.71,176.68,5.30144337]
[1748350300077,0.03692916,176.71,176.68,5.30144337]
[1748350300293,0.03692916,176.71,176.69,5.6572]
[1748350301391,0.03692916,176.71,176.7,5.657]
[1748350302488,0.03692916,176.71,176.69,5.6573]
[1748350303491,0.03692916,176.71,176.7,5.657]
[1748350311890,0.03692916,176.71,176.69,5.6573]
[1748350312995,5.69382916,176.71,176.69,5.6573]
[1748350313295,0.03692916,176.71,176.69,5.6573]
[1748350313495,0.03692916,176.71,176.7,5.657]
[1748350316295,0.03692916,176.71,176.69,5.6572]
[1748350316489,0.03692916,176.71,176.68,2.09283397]
[1748350316897,0.03692916,176.71,176.69,5.6573]
[1748350320399,0.03692916,176.71,176.68,0.03583397]
[1748350320902,5.69372916,176.71,176.68,5.69333397]
[1748350322402,0.03692916,176.71,176.68,0.03583397]
[1748350323406,5.6573,176.69,176.68,0.03583397]
[1748350336417,3.2086094,176.7,176.62,0.47693348]
[1748350336608,3.2086094,176.66,176.59,2.36813348]
[1748350336808,3.2086094,176.66,176.58,0.47693348]
[1748350337218,5.6591,176.64,176.58,0.47693348]
[1748350337419,0.03780289,176.63,176.59,0.03928193]
[1748350337719,0.03780289,176.63,176.6,5.66]
[1748350338716,0.03780289,176.63,176.59,0.03928193]
[1748350339120,5.69710289,176.63,176.59,0.03928193]
[1748350339811,5.69710289,176.63,176.6,5.66]
[1748350342519,5.6596,176.62,176.6,5.66]
[1748350342719,0.03780289,176.63,176.6,5.66]
[1748350343421,0.03780289,176.63,176.59,5.69968193]
[1748350343615,5.6602,176.6,176.59,0.03928193]
[1748350343822,3.24641229,176.63,176.59,0.03928193]
[1748350344219,5.6599,176.62,176.59,0.03928193]
[1748350344623,5.6599,176.62,176.59,5.69958193]
[1748350345310,0.03780289,176.63,176.59,0.03928193]
[1748350348719,0.03780289,176.63,176.62,5.6596]
[1748350351223,0.03780289,176.63,176.61,5.6598]
[1748350351418,0.03780289,176.63,176.59,0.03928193]
[1748350352322,0.03780289,176.63,176.6,5.6599]
[1748350352920,5.69720289,176.63,176.6,5.6599]
[1748350356630,0.03780289,176.63,176.61,5.6599]
[1748350357527,5.69720289,176.63,176.61,5.6599]
[1748350358826,5.69720289,176.63,176.6,5.6602]
[1748350359029,0.03780289,176.63,176.59,0.03928193]
[1748350359419,0.03780289,176.63,176.61,5.6598]
[1748350360021,0.03780289,176.63,176.62,5.6596]
[1748350362430,5.69720289,176.63,176.6,5.6602]
[1748350363330,5.69720289,176.63,176.61,5.6599]
[1748350365727,0.03780289,176.63,176.61,5.6599]
[1748350367029,5.69710289,176.63,176.61,5.6599]
[1748350367230,0.03780289,176.63,176.59,0.03928193]
[1748350367827,5.69720289,176.63,176.6,5.6602]
[1748350370419,0.03780289,176.63,176.61,5.6597]
[1748350370624,0.03780289,176.63,176.59,0.03928193]
[1748350371022,0.03780289,176.63,176.61,5.6597]
[1748350375538,0.03780289,176.63,176.59,0.03928193]
[1748350375539,0.03780289,176.63,176.62,5.6596]
[1748350377932,0.03780289,176.63,176.61,5.6598]
[1748350379130,0.03780289,176.63,176.62,5.6596]
[1748350379742,0.03780289,176.63,176.59,0.51503639]
[1748350379942,3.24641229,176.63,176.59,0.03928193]
[1748350380137,0.03780289,176.63,176.59,5.69968193]
[1748350380334,3.24641229,176.63,176.59,0.03928193]
[1748350380737,8.90581229,176.63,176.6,5.6601]
[1748350381637,3.24641229,176.63,176.61,5.6599]
[1748350381842,0.03780289,176.63,176.59,0.51503639]
[1748350382040,0.03780289,176.63,176.59,3.72364579]
[1748350382245,28.44,176.68,176.61,3.2086094]
[1748350382444,28.44,176.68,176.62,0.47575446]
[1748350382946,28.44,176.68,176.66,5.6582]
[1748350383245,34.0978,176.68,176.65,0.03628578]
[1748350383444,28.44,176.68,176.65,0.03628578]
[1748350384243,34.0979,176.68,176.65,5.69478578]
[1748350384446,34.0979,176.68,176.65,0.03628578]
[1748350384847,28.44,176.68,176.66,5.6581]
[1748350385042,0.0412737,176.69,176.65,0.03628578]
[1748350385443,0.0412737,176.69,176.68,5.6577]
[1748350387247,0.0412737,176.69,176.67,5.6579]
[1748350390846,0.0412737,176.69,176.66,5.6583]
[1748350391546,0.0412737,176.69,176.67,5.658]
[1748350396248,5.6987737,176.69,176.66,5.6582]
[1748350398156,0.0412737,176.69,176.67,5.658]
[1748350399363,0.0412737,176.69,176.66,5.6583]
[1748350399766,5.6988737,176.69,176.66,5.6583]
[1748350399962,0.0412737,176.69,176.65,3.24489518]
[1748350400168,0.0412737,176.69,176.66,4.0303]
[1748350400367,523.1159,176.74,176.71,5.6566]
[1748350401876,517.46,176.74,176.67,3.2086094]
[1748350402066,28.42,176.74,176.67,3.2086094]
[1748350402364,28.42,176.74,176.72,5.6561]
[1748350402761,28.42,176.79,176.67,3.2086094]
[1748350402960,31.6286094,176.81,176.76,5.6549]
[1748350403160,31.6286094,176.81,176.72,3.2086094]
[1748350403364,5.6542,176.79,176.72,3.2086094]
[1748350403567,5.6542,176.79,176.76,5.655]
[1748350404073,5.654,176.8,176.72,3.2086094]
[1748350404267,31.6286094,176.81,176.76,5.655]
[1748350405270,5.6545,176.79,176.76,5.655]
[1748350405969,5.69296829,176.79,176.76,5.69783282]
[1748350406267,5.69296829,176.79,176.76,0.04283282]
[1748350406470,5.6546,176.78,176.76,0.04283282]
[1748350408371,5.6546,176.78,176.76,5.69793282]
[1748350408674,5.69276829,176.79,176.76,5.69793282]
[1748350409172,5.6545,176.78,176.76,5.69793282]
[1748350410674,5.6545,176.78,176.76,0.04283282]
[1748350410867,0.03846829,176.79,176.76,0.04283282]
[1748350411371,5.6548,176.78,176.76,0.04283282]
[1748350412373,0.03846829,176.79,176.76,0.04283282]
[1748350412575,0.03846829,176.79,176.77,5.6547]
[1748350412968,0.03846829,176.79,176.76,0.04283282]
[1748350413771,5.6546,176.78,176.76,0.04283282]
[1748350414170,5.6548,176.77,176.76,0.04283282]
[1748350417376,5.6546,176.78,176.76,0.04283282]
[1748350417876,0.03846829,176.79,176.76,0.04283282]
[1748350418079,5.6548,176.77,176.76,0.04283282]
[1748350427483,34.0548,176.77,176.76,0.04283282]
[1748350427986,37.26065183,176.77,176.76,0.04283282]
[1748350430984,31.60585183,176.77,176.76,0.04283282]
[1748350431398,0.03846829,176.79,176.76,0.04283282]
[1748350431595,31.60585183,176.78,176.76,0.04283282]
[1748350432597,37.26065183,176.78,176.76,0.04283282]
[1748350432992,31.60585183,176.78,176.76,0.04283282]
[1748350433195,5.6548,176.77,176.76,0.04283282]
[1748350434691,5.6559,176.74,176.68,1.9815]
[1748350434893,31.60585183,176.74,176.68,1.9815]
[1748350435592,5.6564,176.72,176.69,5.6573]
[1748350435797,5.6564,176.72,176.69,5.69569128]
[1748350436493,0.04346245,176.73,176.69,0.03839128]
[1748350436897,0.04346245,176.73,176.7,5.657]
[1748350438201,0.04346245,176.73,176.71,5.6567]
[1748350438902,0.04346245,176.73,176.7,5.657]
[1748350439696,5.69956245,176.73,176.7,5.657]
[1748350443695,0.04346245,176.73,176.69,0.03839128]
[1748350444903,5.6567,176.72,176.69,5.69579128]
[1748350445296,0.04346245,176.73,176.69,0.03839128]
[1748350445497,3.24931428,176.73,176.71,5.6567]
[1748350445903,8.90551428,176.73,176.7,5.6568]
[1748350446105,3.24931428,176.73,176.69,0.03839128]
[1748350446700,3.24931428,176.73,176.7,5.657]
[1748350447405,3.24931428,176.73,176.71,5.6565]
[1748350447603,0.04346245,176.73,176.69,0.03839128]
[1748350448101,0.04346245,176.73,176.71,5.6567]
[1748350449503,0.04346245,176.73,176.7,5.6569]
[1748350449700,0.04346245,176.73,176.69,0.03839128]
[1748350450197,0.04346245,176.73,176.7,5.657]
[1748350451397,0.04346245,176.73,176.69,0.03839128]
[1748350452200,0.04346245,176.73,176.7,5.6569]
[1748350452606,5.69956245,176.73,176.7,5.6569]
[1748350453005,5.69956245,176.73,176.69,5.69569128]
[1748350453006,5.6566,176.72,176.69,5.69569128]
[1748350453208,3.20585183,176.72,176.69,0.03839128]
[1748350453708,5.657,176.71,176.69,0.03839128]
[1748350455311,8.86245183,176.72,176.69,5.69579128]
[1748350457200,0.04346245,176.73,176.69,5.69579128]
[1748350457407,3.24931428,176.73,176.69,5.69579128]
[1748350458404,5.6565,176.72,176.69,5.69579128]
[1748350462612,8.90571428,176.73,176.7,5.657]
[1748350463514,5.6565,176.72,176.69,5.69569128]
[1748350463710,3.24931428,176.73,176.69,0.03839128]
[1748350464017,0.04346245,176.73,176.71,5.6566]
[1748350464717,0.04346245,176.73,176.7,5.6569]
[1748350466312,0.04346245,176.73,176.71,5.6568]
[1748350467909,0.04346245,176.73,176.7,5.657]
[1748350468215,3.24931428,176.73,176.69,0.03839128]
[1748350468410,3.24931428,176.73,176.69,5.69559128]
[1748350468602,8.90551428,176.73,176.69,5.69559128]
[1748350471214,5.6565,176.72,176.69,5.69559128]
[1748350473819,5.69976245,176.73,176.7,5.6569]
[1748350474016,5.69976245,176.73,176.69,0.03839128]
[1748350474017,0.04346245,176.73,176.69,0.03839128]
[1748350474812,3.20585183,176.72,176.69,0.03839128]
[1748350475812,0.04346245,176.73,176.69,0.03839128]
[1748350476112,3.20585183,176.72,176.69,0.03839128]
[1748350476312,5.6569,176.71,176.69,0.03839128]
[1748350476614,0.04346245,176.73,176.69,0.03839128]
[1748350476931,8.90561428,176.73,176.7,5.657]
[1748350477614,5.6565,176.72,176.69,5.69569128]
[1748350478215,8.90551428,176.73,176.7,5.657]
[1748350478617,5.69966245,176.73,176.7,5.657]
[1748350478817,0.04346245,176.73,176.71,5.6567]
[1748350479016,0.04346245,176.73,176.69,0.03839128]
[1748350479218,0.04346245,176.73,176.72,5.6564]
[1748350479422,28.38,176.77,176.69,0.51506748]
[1748350479822,5.6555,176.75,176.69,0.51506748]
[1748350480415,0.04221702,176.74,176.69,0.51506748]
[1748350480716,0.04221702,176.74,176.73,5.656]
[1748350483222,0.04221702,176.74,176.73,7.5203]
[1748350484523,0.04221702,176.74,176.73,9.5799]
[1748350490820,1.702e-05,176.74,176.73,9.5799]
[1748350495729,1.702e-05,176.74,176.73,12.78575183]
[1748350497624,28.34,176.84,176.79,5.6542]
[1748350498017,28.34,176.84,176.77,3.20585183]
[1748350498219,5.6533,176.82,176.79,5.6541]
[1748350498426,28.34,176.84,176.79,5.6541]
[1748350498628,5.69152117,176.83,176.8,0.03820713]
[1748350500534,5.69152117,176.83,176.8,5.69210713]
[1748350503228,0.03852117,176.83,176.8,5.69210713]
[1748350504027,0.03852117,176.83,176.82,5.6532]
[1748350504431,0.03852117,176.83,176.8,3.24405896]
[1748350504734,0.03852117,176.83,176.8,0.03820713]
[1748350506434,0.03852117,176.83,176.82,5.6532]
[1748350518146,517.7,176.9,176.86,5.6516]
[1748350518544,517.7,176.9,176.83,3.20585183]
[1748350519243,0.03787124,176.88,176.87,5.6514]
[1748350519631,0.03787124,176.88,176.85,0.04279026]
[1748350519632,0.03787124,176.88,176.86,5.6518]
[1748350519837,0.03787124,176.88,176.85,0.04279026]
[1748350521337,5.6517,176.87,176.85,5.69489026]
[1748350522341,5.68937124,176.88,176.85,5.69489026]
[1748350522541,5.68937124,176.88,176.86,5.6519]
[1748350524841,0.03787124,176.88,176.87,5.6516]
[1748350526751,0.03787124,176.88,176.86,5.6518]
[1748350527547,0.03787124,176.88,176.85,5.69489026]
[1748350527548,5.68937124,176.88,176.85,5.69489026]
[1748350528051,0.03787124,176.88,176.86,5.6519]
[1748350528642,5.68927124,176.88,176.86,5.6519]
[1748350528848,0.03787124,176.88,176.85,0.04279026]
[1748350529455,0.03787124,176.88,176.85,5.69509026]
[1748350529646,5.68937124,176.88,176.85,5.69509026]
[1748350530353,5.6517,176.87,176.85,5.69509026]
[1748350530546,0.03787124,176.88,176.85,5.69509026]
[1748350531454,5.68937124,176.88,176.85,5.69509026]
[1748350532160,5.6517,176.87,176.85,0.04279026]
[1748350532456,0.03787124,176.88,176.85,0.04279026]
[1748350532847,5.68927124,176.88,176.85,5.69489026]
[1748350535367,5.68927124,176.88,176.86,5.6519]
[1748350535861,0.03787124,176.88,176.86,5.6519]
[1748350536554,3.24372307,176.88,176.85,0.04279026]
[1748350537953,5.652,176.86,176.85,0.04279026]
[1748350540358,8.85785183,176.86,176.85,0.04279026]
[1748350540763,37.83785183,176.86,176.85,0.04279026]
[1748350541357,32.18585183,176.86,176.76,28.66]
[1748350541553,3.20585183,176.82,176.75,0.47421556]
[1748350541758,3.20585183,176.82,176.74,2.40041556]
[1748350541961,5.654,176.8,176.76,5.6549]
[1748350542365,5.69173555,176.8,176.76,5.69718501]
[1748350542866,5.69173555,176.8,176.76,0.04228501]
[1748350542867,5.6547,176.78,176.76,0.04228501]
[1748350544160,5.6543,176.79,176.76,5.69748501]
[1748350544366,0.03773555,176.8,176.76,0.04228501]
[1748350544854,0.03773555,176.8,176.76,5.69718501]
[1748350545664,5.69183555,176.8,176.76,5.69718501]
[1748350546366,5.69183555,176.8,176.77,5.6548]
[1748350547155,5.6548,176.77,176.76,0.04228501]
[1748350548058,28.66,176.78,176.7,28.66]
[1748350548665,28.66,176.78,176.71,5.6566]
[1748350549066,0.03636729,176.76,176.73,0.03808934]
[1748350549767,5.6558,176.75,176.73,0.03808934]
[1748350550962,5.69166729,176.76,176.73,0.03808934]
[1748350551360,0.03636729,176.76,176.73,0.03808934]
[1748350552257,0.03636729,176.76,176.74,5.6557]
[1748350555673,0.03636729,176.76,176.73,5.69408934]
[1748350556369,0.03636729,176.76,176.73,0.03808934]
[1748350557076,0.03636729,176.76,176.75,5.6555]
[1748350557862,28.66,176.81,176.73,3.91368934]
[1748350558572,34.3136,176.81,176.79,5.6541]
[1748350558769,28.66,176.81,176.79,5.6541]
[1748350559871,0.03696795,176.82,176.78,0.04297672]
[1748350559872,0.03696795,176.82,176.8,5.6536]
[1748350561370,5.69026795,176.82,176.79,5.6541]
[1748350561776,0.03696795,176.82,176.78,0.04297672]
[1748350563779,0.03696795,176.82,176.8,5.6538]
[1748350564482,0.03696795,176.82,176.78,0.04297672]
[1748350564885,0.03696795,176.82,176.8,5.6536]
[1748350565777,0.03696795,176.82,176.78,0.04297672]
[1748350565778,0.03696795,176.82,176.81,5.6536]
[1748350567890,0.03696795,176.82,176.78,0.04297672]
[1748350567891,0.03696795,176.82,176.8,5.6538]
[1748350569091,0.03696795,176.82,176.81,5.6536]
[1748350585802,5.6511,176.89,176.81,3.20213943]
[1748350585999,5.6511,176.89,176.86,5.6517]
[1748350586202,28.38,176.9,176.86,5.6517]
[1748350586403,5.6512,176.89,176.86,5.6517]
[1748350586604,28.38,176.9,176.85,5.6522]
[1748350587106,5.6516,176.88,176.86,0.03799331]
[1748350588498,5.69043102,176.89,176.86,5.68999331]
[1748350588706,0.03933102,176.89,176.86,0.03799331]
[1748350589103,0.03933102,176.89,176.86,5.68979331]
[1748350589104,5.69053102,176.89,176.86,5.68979331]
[1748350590100,5.6514,176.88,176.86,5.68979331]
[1748350590705,5.6514,176.88,176.86,0.03799331]
[1748350591719,0.03933102,176.89,176.86,0.03799331]
[1748350592307,5.6517,176.87,176.86,0.03799331]
[1748350609226,8.85314596,176.88,176.86,0.03799331]
[1748350609721,5.6514,176.88,176.86,0.03799331]
[1748350610120,5.69043102,176.89,176.86,5.68989331]
[1748350610323,5.69043102,176.89,176.86,0.03799331]
[1748350611119,5.69043102,176.89,176.86,5.68989331]
[1748350611730,5.6514,176.88,176.86,5.68989331]
[1748350612029,5.6514,176.88,176.86,0.03799331]
[1748350612427,0.03933102,176.89,176.86,0.03799331]
[1748350612930,5.69033102,176.89,176.86,0.03799331]
[1748350614229,5.69033102,176.89,176.86,5.68969331]
[1748350614624,0.03933102,176.89,176.88,5.6513]
[1748350615134,0.03933102,176.89,176.86,0.03799331]
[1748350616528,0.03933102,176.89,176.87,5.6516]
[1748350616927,5.69033102,176.89,176.87,5.6516]
[1748350617233,0.03933102,176.89,176.87,5.6516]
[1748350618232,0.03933102,176.89,176.88,5.6513]
[1748350618428,0.03933102,176.89,176.86,0.03799331]
[1748350618931,0.03933102,176.89,176.87,5.6515]
[1748350619131,0.03933102,176.89,176.86,0.03799331]
[1748350619630,0.03933102,176.89,176.87,5.6517]
[1748350620035,0.03933102,176.89,176.86,0.03799331]
[1748350620624,0.03933102,176.89,176.87,5.6517]
[1748350621233,5.69043102,176.89,176.87,5.6517]
[1748350621929,0.03933102,176.89,176.87,5.6517]
[1748350622526,0.03933102,176.89,176.88,5.6513]
[1748350627035,5.69043102,176.89,176.86,0.03799331]
[1748350627230,0.03933102,176.89,176.86,0.03799331]
[1748350627830,5.6514,176.88,176.86,5.68979331]
[1748350628338,5.69043102,176.89,176.87,5.6514]
[1748350628530,0.03933102,176.89,176.86,0.03799331]
[1748350630244,0.03933102,176.89,176.87,5.6515]
[1748350630744,5.69043102,176.89,176.87,5.6515]
[1748350634343,0.03933102,176.89,176.87,5.6515]
[1748350634940,5.69033102,176.89,176.87,5.6515]
[1748350639541,5.6513,176.88,176.86,5.68989331]
[1748350639740,5.6513,176.88,176.86,0.03799331]
[1748350640244,0.03933102,176.89,176.86,5.68969331]
[1748350640245,5.69053102,176.89,176.86,5.68969331]
[1748350640745,5.69053102,176.89,176.87,5.6516]
[1748350641549,0.03933102,176.89,176.88,5.6513]
[1748350649646,0.03933102,176.89,176.87,5.6515]
[1748350649954,0.03933102,176.89,176.86,1.92599331]
[1748350651348,0.03933102,176.89,176.87,5.6514]
[1748350652144,3.20174596,176.92,176.87,5.6514]
[1748350652145,31.54174596,176.96,176.87,3.20174596]
[1748350652355,31.53914485,176.96,176.87,3.19914485]
[1748350652648,7.04695537,177.0,176.86,32.67844587]
[1748350652855,17.5806141,177.02,176.96,3.19611892]
[1748350653051,23.2275141,177.02,176.97,5.6482]
[1748350653354,0.04025672,177.01,176.98,0.03628723]
[1748350654648,3.19611892,177.0,176.98,0.03628723]
[1748350654850,5.6478,176.99,176.98,0.03628723]
[1748350655250,5.6475,177.0,176.98,0.03628723]
[1748350655652,0.04025672,177.01,176.98,0.03628723]
[1748350656053,5.6477,177.0,176.98,0.03628723]
[1748350656452,0.04025672,177.01,176.98,0.03628723]
[1748350656653,5.6475,177.0,176.98,0.03628723]
[1748350656856,0.04025672,177.01,176.98,0.03628723]
[1748350657257,5.6478,176.99,176.98,0.03628723]
[1748350659345,5.6476,177.0,176.98,0.03628723]
[1748350659746,0.04025672,177.01,176.98,0.03628723]
[1748350659951,5.6478,176.99,176.98,0.03628723]
[1748350693682,8.8453083,176.99,176.98,0.03628723]
[1748350695291,5.6478,176.99,176.98,0.03628723]
[1748350695490,8.8453083,176.99,176.98,0.03628723]
[1748350700083,5.6495,176.94,176.92,4.21293596]
[1748350700687,5.6497,176.94,176.92,2.34223596]
[1748350700891,5.6497,176.94,176.92,1.98]
[1748350703096,5.69090907,176.95,176.92,7.63]
[1748350703396,5.69090907,176.95,176.92,1.98]
[1748350704391,0.04150907,176.95,176.91,0.03629294]
[1748350704591,0.04150907,176.95,176.92,5.6498]
[1748350704798,0.04150907,176.95,176.91,0.03629294]
[1748350705095,0.04150907,176.95,176.93,5.6495]
[1748350705291,0.04150907,176.95,176.91,3.23380124]
[1748350705697,0.04150907,176.95,176.94,5.6494]
[1748350713407,3.1975083,177.01,176.92,3.1975083]
[1748350713709,5.6477,177.0,176.93,1.8825]
[1748350714309,0.03739768,176.98,176.95,0.03587316]
[1748350714708,0.03739768,176.98,176.97,5.6483]
[1748350715212,5.68559768,176.98,176.96,5.6487]